[Event "Live Chess"]
[Site "Chess.com"]
[Date "2020.05.16"]
[Round "1.72"]
[White "Gamal, Alaa"]
[Black "Diakonova, Ekaterina"]
[Result "0-1"]
[ECO "E61"]
[WhiteElo "1627"]
[BlackElo "2139"]
[PlyCount "100"]
[EventDate "2020.??.??"]
[TimeControl "180+2"]
[WhiteClock "0:00:50"]
[BlackClock "0:00:50"]

1. c4 {[%emt 0:00:00]} Nf6 {[%emt 0:00:01]} 2. Nc3 {[%emt 0:00:01]} g6 {
[%emt 0:00:01]} 3. g3 {[%emt 0:00:01]} Bg7 {[%emt 0:00:02]} 4. Bg2 {[%emt 0:00:
01]} O-O {[%emt 0:00:00]} 5. e3 {[%emt 0:00:01]} e5 {[%emt 0:00:01]} 6. Nge2 {
[%emt 0:00:01]} c6 {[%emt 0:00:24]} 7. d4 {[%emt 0:00:01]} d6 {[%emt 0:00:13]}
8. dxe5 {[%emt 0:00:04]} dxe5 {[%emt 0:00:01]} 9. O-O {[%emt 0:00:03]} Qc7 {
[%emt 0:00:11]} 10. b3 {[%emt 0:00:02]} Be6 {[%emt 0:00:35]} 11. Qc2 {[%emt 0:
00:07]} Nbd7 {[%emt 0:00:14]} 12. Bb2 {[%emt 0:00:04]} Nh5 {[%emt 0:00:09]} 13.
f4 {[%emt 0:00:14]} Qb6 {[%emt 0:00:09]} 14. Bc1 {[%emt 0:00:37]} exf4 {
[%emt 0:00:05]} 15. gxf4 {[%emt 0:00:03]} Bf5 {[%emt 0:00:03]} 16. Qd1 {
[%emt 0:00:19]} Rad8 {[%emt 0:00:03]} 17. Qe1 {[%emt 0:00:05]} Bd3 {[%emt 0:00:
05]} 18. Kh1 {[%emt 0:00:09]} Bxe2 {[%emt 0:00:01]} 19. Qxe2 {[%emt 0:00:22]}
Bxc3 {[%emt 0:00:02]} 20. Rb1 {[%emt 0:00:02]} Bg7 {[%emt 0:00:07]} 21. f5 {
[%emt 0:00:02]} Nhf6 {[%emt 0:00:07]} 22. e4 {[%emt 0:00:10]} Rfe8 {[%emt 0:00:
06]} 23. Bb2 {[%emt 0:00:05]} Ne5 {[%emt 0:00:16]} 24. fxg6 {[%emt 0:00:03]}
hxg6 {[%emt 0:00:02]} 25. Qe1 {[%emt 0:00:09]} Nd3 {[%emt 0:00:02]} 26. Qh4 {
[%emt 0:00:04]} Nxb2 {[%emt 0:00:02]} 27. Rxb2 {[%emt 0:00:01]} Nxe4 {[%emt 0:
00:18]} 28. Rbf2 {[%emt 0:00:05]} Nxf2+ {[%emt 0:00:02]} 29. Qxf2 {[%emt 0:00:
03]} Qxf2 {[%emt 0:00:02]} 30. Rxf2 {[%emt 0:00:02]} Rd1+ {[%emt 0:00:00]} 31.
Bf1 {[%emt 0:00:01]} Ree1 {[%emt 0:00:01]} 32. Kg2 {[%emt 0:00:02]} Bd4 {
[%emt 0:00:01]} 33. Rf4 {[%emt 0:00:03]} g5 {[%emt 0:00:02]} 34. Rf3 {[%emt 0:
00:05]} Kg7 {[%emt 0:00:04]} 35. h4 {[%emt 0:00:02]} Rxf1 {[%emt 0:00:02]} 36.
Rxf1 {[%emt 0:00:03]} Rxf1 {[%emt 0:00:01]} 37. Kxf1 {[%emt 0:00:01]} gxh4 {
[%emt 0:00:00]} 38. Kg2 {[%emt 0:00:01]} Kf6 {[%emt 0:00:02]} 39. Kh3 {[%emt 0:
00:01]} Kg5 {[%emt 0:00:01]} 40. a3 {[%emt 0:00:03]} f5 {[%emt 0:00:01]} 41. a4
{[%emt 0:00:02]} a5 {[%emt 0:00:02]} 42. c5 {[%emt 0:00:06]} Bxc5 {[%emt 0:00:
01]} 43. b4 {[%emt 0:00:06]} Bxb4 {[%emt 0:00:01]} 44. Kh2 {[%emt 0:00:01]} Kg4
{[%emt 0:00:01]} 45. Kg2 {[%emt 0:00:03]} h3+ {[%emt 0:00:01]} 46. Kh2 {
[%emt 0:00:01]} Kh4 {[%emt 0:00:01]} 47. Kg1 {[%emt 0:00:02]} Kg3 {[%emt 0:00:
01]} 48. Kh1 {[%emt 0:00:02]} f4 {[%emt 0:00:01]} 49. Kg1 {[%emt 0:00:02]} f3 {
[%emt 0:00:01]} 50. Kf1 {[%emt 0:00:04]} f2 {[%emt 0:00:02] Diakonova, Ekaterina won by
resignation} 0-1

[Event "Live Chess"]
[Site "Chess.com"]
[Date "2020.05.16"]
[Round "1.73"]
[White "Diakonova, Ekaterina"]
[Black "Gamal, Alaa"]
[Result "1-0"]
[ECO "B00"]
[WhiteElo "2140"]
[BlackElo "1626"]
[PlyCount "105"]
[EventDate "2020.??.??"]
[TimeControl "180+2"]
[WhiteClock "0:00:35"]
[BlackClock "0:00:55"]

1. e4 {[%emt 0:00:00]} b6 {[%emt 0:00:05]} 2. d4 {[%emt 0:00:01]} Bb7 {[%emt 0:
00:01]} 3. Nc3 {[%emt 0:00:00]} g6 {[%emt 0:00:03]} 4. f4 {[%emt 0:00:03]} Bg7
{[%emt 0:00:01]} 5. Nf3 {[%emt 0:00:01]} e6 {[%emt 0:00:02]} 6. Be3 {[%emt 0:
00:02]} Ne7 {[%emt 0:00:02]} 7. Bd3 {[%emt 0:00:03]} d6 {[%emt 0:00:01]} 8. Qd2
{[%emt 0:00:01]} a6 {[%emt 0:00:01]} 9. O-O-O {[%emt 0:00:23]} c5 {[%emt 0:00:
04]} 10. dxc5 {[%emt 0:00:18]} bxc5 {[%emt 0:00:15]} 11. e5 {[%emt 0:00:08]} d5
{[%emt 0:00:04]} 12. Bxc5 {[%emt 0:00:01]} O-O {[%emt 0:00:02]} 13. Nd4 {
[%emt 0:00:12]} Nd7 {[%emt 0:00:04]} 14. Bd6 {[%emt 0:00:03]} Re8 {[%emt 0:00:
06]} 15. g4 {[%emt 0:00:02]} Nc6 {[%emt 0:00:10]} 16. Nxc6 {[%emt 0:00:15]}
Bxc6 {[%emt 0:00:03]} 17. Ne2 {[%emt 0:00:01]} d4 {[%emt 0:00:02]} 18. Rhg1 {
[%emt 0:00:05]} Qb6 {[%emt 0:00:03]} 19. Bc4 {[%emt 0:00:14]} Bf3 {[%emt 0:00:
05]} 20. Qxd4 {[%emt 0:00:06]} Qxd4 {[%emt 0:00:04]} 21. Rxd4 {[%emt 0:00:01]}
Red8 {[%emt 0:00:18]} 22. Bc7 {[%emt 0:00:28]} Rdc8 {[%emt 0:00:15]} 23. Rxd7 {
[%emt 0:00:02]} Ra7 {[%emt 0:00:01]} 24. Rd8+ {[%emt 0:00:07]} Rxd8 {[%emt 0:
00:14]} 25. Bxd8 {[%emt 0:00:01]} Rd7 {[%emt 0:00:06]} 26. Bb6 {[%emt 0:00:05]}
Rb7 {[%emt 0:00:05]} 27. Be3 {[%emt 0:00:11]} a5 {[%emt 0:00:02]} 28. b3 {
[%emt 0:00:02]} a4 {[%emt 0:00:02]} 29. Nd4 {[%emt 0:00:02]} Be4 {[%emt 0:00:
03]} 30. Nb5 {[%emt 0:00:04]} axb3 {[%emt 0:00:06]} 31. cxb3 {[%emt 0:00:03]}
Rd7 {[%emt 0:00:13]} 32. Rd1 {[%emt 0:00:04]} Bd5 {[%emt 0:00:06]} 33. a4 {
[%emt 0:00:05]} Bf8 {[%emt 0:00:03]} 34. Kb2 {[%emt 0:00:03]} h5 {[%emt 0:00:
17]} 35. g5 {[%emt 0:00:03]} Bb4 {[%emt 0:00:06]} 36. Bxd5 {[%emt 0:00:03]}
exd5 {[%emt 0:00:02]} 37. Bd2 {[%emt 0:00:01]} Bc5 {[%emt 0:00:07]} 38. b4 {
[%emt 0:00:02]} Be7 {[%emt 0:00:09]} 39. Kb3 {[%emt 0:00:01]} d4 {[%emt 0:00:
01]} 40. Be1 {[%emt 0:00:03]} d3 {[%emt 0:00:01]} 41. Kc3 {[%emt 0:00:06]} Kf8
{[%emt 0:00:11]} 42. Rxd3 {[%emt 0:00:01]} Rxd3+ {[%emt 0:00:02]} 43. Kxd3 {
[%emt 0:00:01]} Bd8 {[%emt 0:00:02]} 44. a5 {[%emt 0:00:01]} Ke7 {[%emt 0:00:
02]} 45. Kc4 {[%emt 0:00:02]} Kd7 {[%emt 0:00:01]} 46. Nd6 {[%emt 0:00:01]} Ke6
{[%emt 0:00:02]} 47. b5 {[%emt 0:00:02]} Bc7 {[%emt 0:00:02]} 48. a6 {[%emt 0:
00:01]} Bb6 {[%emt 0:00:02]} 49. Nc8 {[%emt 0:00:02]} Be3 {[%emt 0:00:06]} 50.
b6 {[%emt 0:00:01]} Kd7 {[%emt 0:00:01]} 51. b7 {[%emt 0:00:01]} Ba7 {[%emt 0:
00:02]} 52. Nxa7 {[%emt 0:00:02]} Kc7 {[%emt 0:00:01]} 53. Nc6 {[%emt 0:00:01]
Diakonova, Ekaterina won by resignation} 1-0

[Event "Live Chess"]
[Site "Chess.com"]
[Date "2020.05.16"]
[Round "1.81"]
[White "Karas, Eugenia"]
[Black "Posadas, Rayelynn"]
[Result "1-0"]
[ECO "D10"]
[WhiteElo "1844"]
[BlackElo "1574"]
[PlyCount "59"]
[EventDate "2020.??.??"]
[TimeControl "180+2"]
[WhiteClock "0:00:05"]
[BlackClock "0:00:52"]

1. d4 {[%emt 0:00:05]} d5 {[%emt 0:00:02]} 2. c4 {[%emt 0:00:02]} c6 {[%emt 0:
00:02]} 3. cxd5 {[%emt 0:00:01]} cxd5 {[%emt 0:00:01]} 4. Bg5 {[%emt 0:00:02]}
Nc6 {[%emt 0:00:08]} 5. Nc3 {[%emt 0:00:03]} Nf6 {[%emt 0:00:03]} 6. Bxf6 {
[%emt 0:00:02]} exf6 {[%emt 0:00:02]} 7. Nf3 {[%emt 0:00:02]} Be6 {[%emt 0:00:
01]} 8. e3 {[%emt 0:00:02]} Bd6 {[%emt 0:00:02]} 9. Bd3 {[%emt 0:00:03]} O-O {
[%emt 0:00:02]} 10. O-O {[%emt 0:00:03]} a6 {[%emt 0:00:01]} 11. h3 {[%emt 0:
00:06]} Rc8 {[%emt 0:00:02]} 12. a3 {[%emt 0:00:06]} Ne7 {[%emt 0:00:07]} 13.
Rc1 {[%emt 0:00:04]} Bf5 {[%emt 0:00:41]} 14. Bxf5 {[%emt 0:00:05]} Nxf5 {
[%emt 0:00:02]} 15. Nxd5 {[%emt 0:00:11]} Rxc1 {[%emt 0:00:21]} 16. Qxc1 {
[%emt 0:00:08]} Kh8 {[%emt 0:00:42]} 17. Nc3 {[%emt 0:00:05]} Qd7 {[%emt 0:00:
15]} 18. Qd2 {[%emt 0:00:13]} h6 {[%emt 0:00:14]} 19. Rc1 {[%emt 0:00:15]} Ne7
{[%emt 0:00:11]} 20. Ne4 {[%emt 0:00:05]} Rc8 {[%emt 0:00:13]} 21. Rxc8+ {
[%emt 0:00:12]} Nxc8 {[%emt 0:00:01]} 22. Nxd6 {[%emt 0:00:13]} Nxd6 {[%emt 0:
00:01]} 23. Qc2 {[%emt 0:00:03]} Qb5 {[%emt 0:00:11]} 24. Nd2 {[%emt 0:00:08]}
Qd7 {[%emt 0:00:10]} 25. b3 {[%emt 0:00:35]} Kg8 {[%emt 0:00:01]} 26. Nc4 {
[%emt 0:00:03]} Nxc4 {[%emt 0:00:11]} 27. Qxc4 {[%emt 0:00:03]} Kf8 {[%emt 0:
00:01]} 28. Kf1 {[%emt 0:00:02]} Ke7 {[%emt 0:00:03]} 29. Qc5+ {[%emt 0:00:03]}
Ke8 {[%emt 0:00:03]} 30. Ke2 {[%emt 0:00:04] Karas, Eugenia won on time} 1-0

[Event "Live Chess"]
[Site "Chess.com"]
[Date "2020.05.16"]
[Round "1.82"]
[White "Posadas, Rayelynn"]
[Black "Karas, Eugenia"]
[Result "1/2-1/2"]
[ECO "C01"]
[WhiteElo "1579"]
[BlackElo "1839"]
[PlyCount "140"]
[EventDate "2020.??.??"]
[TimeControl "180+2"]
[WhiteClock "0:00:19"]
[BlackClock "0:00:24"]

1. e4 {[%emt 0:00:00]} e6 {[%emt 0:00:01]} 2. d4 {[%emt 0:00:01]} d5 {[%emt 0:
00:07]} 3. exd5 {[%emt 0:00:01]} exd5 {[%emt 0:00:01]} 4. Nf3 {[%emt 0:00:01]}
Nc6 {[%emt 0:00:02]} 5. Be2 {[%emt 0:00:03]} Nf6 {[%emt 0:00:02]} 6. O-O {
[%emt 0:00:01]} Be7 {[%emt 0:00:01]} 7. c3 {[%emt 0:00:01]} O-O {[%emt 0:00:01]
} 8. Be3 {[%emt 0:00:05]} h6 {[%emt 0:00:05]} 9. Nbd2 {[%emt 0:00:01]} Be6 {
[%emt 0:00:03]} 10. Re1 {[%emt 0:00:01]} Qd7 {[%emt 0:00:07]} 11. Nf1 {[%emt 0:
00:03]} Ne4 {[%emt 0:00:07]} 12. Bd3 {[%emt 0:00:05]} Bg4 {[%emt 0:00:13]} 13.
h3 {[%emt 0:00:29]} Bxf3 {[%emt 0:00:21]} 14. Qxf3 {[%emt 0:00:02]} f5 {
[%emt 0:00:03]} 15. Bf4 {[%emt 0:00:37]} Bd6 {[%emt 0:00:20]} 16. Ng3 {[%emt 0:
00:14]} Ne7 {[%emt 0:00:39]} 17. Bxd6 {[%emt 0:00:43]} Qxd6 {[%emt 0:00:07]}
18. Nh5 {[%emt 0:00:01]} c6 {[%emt 0:00:35]} 19. c4 {[%emt 0:00:18]} Qg6 {
[%emt 0:00:12]} 20. Nf4 {[%emt 0:00:03]} Qf6 {[%emt 0:00:10]} 21. Qe3 {[%emt 0:
00:26]} Rfe8 {[%emt 0:00:11]} 22. f3 {[%emt 0:00:16]} Nd6 {[%emt 0:00:06]} 23.
c5 {[%emt 0:00:03]} Nf7 {[%emt 0:00:03]} 24. Qe6 {[%emt 0:00:05]} Qxe6 {
[%emt 0:00:01]} 25. Rxe6 {[%emt 0:00:01]} Ng5 {[%emt 0:00:02]} 26. Re5 {
[%emt 0:00:04]} Kf7 {[%emt 0:00:03]} 27. Rae1 {[%emt 0:00:02]} Rad8 {[%emt 0:
00:05]} 28. h4 {[%emt 0:00:02]} Nh7 {[%emt 0:00:01]} 29. Kh2 {[%emt 0:00:04]}
g6 {[%emt 0:00:01]} 30. g3 {[%emt 0:00:02]} Nf8 {[%emt 0:00:01]} 31. Kh3 {
[%emt 0:00:02]} Nd7 {[%emt 0:00:01]} 32. R5e3 {[%emt 0:00:02]} Nc8 {[%emt 0:00:
01]} 33. Rxe8 {[%emt 0:00:02]} Rxe8 {[%emt 0:00:01]} 34. Rxe8 {[%emt 0:00:01]}
Kxe8 {[%emt 0:00:01]} 35. Nxg6 {[%emt 0:00:01]} Ne7 {[%emt 0:00:09]} 36. Nf4 {
[%emt 0:00:02]} Kf7 {[%emt 0:00:02]} 37. Kg2 {[%emt 0:00:02]} b6 {[%emt 0:00:
01]} 38. cxb6 {[%emt 0:00:01]} axb6 {[%emt 0:00:01]} 39. Kf2 {[%emt 0:00:01]}
c5 {[%emt 0:00:03]} 40. dxc5 {[%emt 0:00:02]} bxc5 {[%emt 0:00:01]} 41. Ke3 {
[%emt 0:00:02]} d4+ {[%emt 0:00:02]} 42. Ke2 {[%emt 0:00:01]} Ne5 {[%emt 0:00:
02]} 43. Bb5 {[%emt 0:00:03]} Kf6 {[%emt 0:00:05]} 44. Nd3 {[%emt 0:00:01]} Nd5
{[%emt 0:00:04]} 45. Nxe5 {[%emt 0:00:01]} Kxe5 {[%emt 0:00:01]} 46. Bc4 {
[%emt 0:00:02]} Nb4 {[%emt 0:00:01]} 47. a3 {[%emt 0:00:02]} Nc6 {[%emt 0:00:
03]} 48. f4+ {[%emt 0:00:03]} Kd6 {[%emt 0:00:03]} 49. Bd3 {[%emt 0:00:02]} Na5
{[%emt 0:00:01]} 50. Bxf5 {[%emt 0:00:03]} c4 {[%emt 0:00:01]} 51. Bc2 {
[%emt 0:00:03]} Kd5 {[%emt 0:00:03]} 52. g4 {[%emt 0:00:01]} Nc6 {[%emt 0:00:
02]} 53. g5 {[%emt 0:00:01]} hxg5 {[%emt 0:00:02]} 54. fxg5 {[%emt 0:00:01]}
Ne5 {[%emt 0:00:02]} 55. g6 {[%emt 0:00:01]} d3+ {[%emt 0:00:02]} 56. Bxd3 {
[%emt 0:00:01]} cxd3+ {[%emt 0:00:01]} 57. Kd2 {[%emt 0:00:01]} Nxg6 {[%emt 0:
00:01]} 58. h5 {[%emt 0:00:01]} Ne5 {[%emt 0:00:03]} 59. h6 {[%emt 0:00:01]}
Nf7 {[%emt 0:00:01]} 60. Kxd3 {[%emt 0:00:01]} Nxh6 {[%emt 0:00:02]} 61. Kc3 {
[%emt 0:00:01]} Kc5 {[%emt 0:00:01]} 62. b4+ {[%emt 0:00:01]} Kb5 {[%emt 0:00:
01]} 63. Kb3 {[%emt 0:00:01]} Nf5 {[%emt 0:00:01]} 64. a4+ {[%emt 0:00:01]} Kb6
{[%emt 0:00:01]} 65. Kc4 {[%emt 0:00:01]} Nd6+ {[%emt 0:00:02]} 66. Kc3 {
[%emt 0:00:03]} Ne4+ {[%emt 0:00:02]} 67. Kc4 {[%emt 0:00:01]} Nd2+ {[%emt 0:
00:01]} 68. Kc3 {[%emt 0:00:03]} Ne4+ {[%emt 0:00:03]} 69. Kd4 {[%emt 0:00:01]}
Nd2 {[%emt 0:00:01]} 70. Kc3 {[%emt 0:00:02]} Ne4+ {[%emt 0:00:02] Game drawn
by repetition} 1/2-1/2

[Event "Live Chess"]
[Site "Chess.com"]
[Date "2020.05.16"]
[Round "1.83"]
[White "Karas, Eugenia"]
[Black "Posadas, Rayelynn"]
[Result "1/2-1/2"]
[ECO "D10"]
[WhiteElo "1834"]
[BlackElo "1584"]
[PlyCount "118"]
[EventDate "2020.??.??"]
[TimeControl "180+2"]
[WhiteClock "0:00:11"]
[BlackClock "0:00:10"]

1. d4 {[%emt 0:00:00]} d5 {[%emt 0:00:01]} 2. c4 {[%emt 0:00:05]} c6 {[%emt 0:
00:08]} 3. cxd5 {[%emt 0:00:01]} cxd5 {[%emt 0:00:01]} 4. Bg5 {[%emt 0:00:01]}
h6 {[%emt 0:00:08]} 5. Bf4 {[%emt 0:00:08]} Nc6 {[%emt 0:00:02]} 6. Nc3 {
[%emt 0:00:03]} Nf6 {[%emt 0:00:01]} 7. e3 {[%emt 0:00:09]} Bf5 {[%emt 0:00:02]
} 8. Bd3 {[%emt 0:00:05]} Bxd3 {[%emt 0:00:03]} 9. Qxd3 {[%emt 0:00:01]} e6 {
[%emt 0:00:01]} 10. Nf3 {[%emt 0:00:02]} Bd6 {[%emt 0:00:01]} 11. Bxd6 {
[%emt 0:00:02]} Qxd6 {[%emt 0:00:01]} 12. O-O {[%emt 0:00:01]} O-O {[%emt 0:00:
01]} 13. Rac1 {[%emt 0:00:03]} a6 {[%emt 0:00:10]} 14. a3 {[%emt 0:00:01]} Rac8
{[%emt 0:00:02]} 15. Rfd1 {[%emt 0:00:03]} Rfe8 {[%emt 0:00:11]} 16. h3 {
[%emt 0:00:09]} Re7 {[%emt 0:00:07]} 17. Ne2 {[%emt 0:00:06]} Rec7 {[%emt 0:00:
01]} 18. Qd2 {[%emt 0:00:19]} Ne4 {[%emt 0:00:04]} 19. Qd3 {[%emt 0:00:10]} Na5
{[%emt 0:00:16]} 20. Rxc7 {[%emt 0:00:06]} Rxc7 {[%emt 0:00:01]} 21. Rc1 {
[%emt 0:00:13]} Nc4 {[%emt 0:00:18]} 22. Qc2 {[%emt 0:00:20]} Rc6 {[%emt 0:00:
14]} 23. Qb3 {[%emt 0:00:10]} Na5 {[%emt 0:00:39]} 24. Rxc6 {[%emt 0:00:32]}
Nxb3 {[%emt 0:00:15]} 25. Rxd6 {[%emt 0:00:01]} Nxd6 {[%emt 0:00:01]} 26. Kf1 {
[%emt 0:00:07]} Nc4 {[%emt 0:00:01]} 27. Ke1 {[%emt 0:00:24]} Nxb2 {[%emt 0:00:
01]} 28. Ne5 {[%emt 0:00:07]} b5 {[%emt 0:00:14]} 29. Nc6 {[%emt 0:00:08]} Nc4
{[%emt 0:00:05]} 30. Nc3 {[%emt 0:00:04]} Nxa3 {[%emt 0:00:03]} 31. Nb4 {
[%emt 0:00:03]} a5 {[%emt 0:00:02]} 32. Nc6 {[%emt 0:00:01]} b4 {[%emt 0:00:02]
} 33. Na4 {[%emt 0:00:04]} Nc4 {[%emt 0:00:06]} 34. Kd1 {[%emt 0:00:02]} Kf8 {
[%emt 0:00:06]} 35. Kc2 {[%emt 0:00:01]} Na1+ {[%emt 0:00:18]} 36. Kb1 {
[%emt 0:00:01]} Nb3 {[%emt 0:00:01]} 37. Kc2 {[%emt 0:00:01]} Nbd2 {[%emt 0:00:
01]} 38. Nxa5 {[%emt 0:00:05]} Nxa5 {[%emt 0:00:12]} 39. Kxd2 {[%emt 0:00:02]}
Ke7 {[%emt 0:00:02]} 40. Kc2 {[%emt 0:00:03]} Kd6 {[%emt 0:00:01]} 41. Nc5 {
[%emt 0:00:01]} f6 {[%emt 0:00:03]} 42. f4 {[%emt 0:00:03]} g5 {[%emt 0:00:02]}
43. g3 {[%emt 0:00:03]} h5 {[%emt 0:00:03]} 44. h4 {[%emt 0:00:06]} gxf4 {
[%emt 0:00:04]} 45. gxf4 {[%emt 0:00:02]} Nc4 {[%emt 0:00:05]} 46. Kd3 {
[%emt 0:00:06]} Na5 {[%emt 0:00:03]} 47. Kc2 {[%emt 0:00:01]} Nc6 {[%emt 0:00:
03]} 48. Kb3 {[%emt 0:00:01]} e5 {[%emt 0:00:05]} 49. fxe5+ {[%emt 0:00:02]}
fxe5 {[%emt 0:00:01]} 50. Nb7+ {[%emt 0:00:03]} Kc7 {[%emt 0:00:02]} 51. Nc5 {
[%emt 0:00:03]} exd4 {[%emt 0:00:02]} 52. Ne6+ {[%emt 0:00:01]} Kd6 {[%emt 0:
00:02]} 53. Nxd4 {[%emt 0:00:01]} Nxd4+ {[%emt 0:00:02]} 54. exd4 {[%emt 0:00:
01]} Kc6 {[%emt 0:00:01]} 55. Kxb4 {[%emt 0:00:04]} Kb6 {[%emt 0:00:01]} 56.
Ka4 {[%emt 0:00:02]} Ka6 {[%emt 0:00:01]} 57. Kb4 {[%emt 0:00:01]} Kb6 {
[%emt 0:00:01]} 58. Ka4 {[%emt 0:00:01]} Ka6 {[%emt 0:00:01]} 59. Kb4 {[%emt 0:
00:01]} Kb6 {[%emt 0:00:01] Game drawn by repetition} 1/2-1/2

[Event "Live Chess"]
[Site "Chess.com"]
[Date "2020.05.16"]
[Round "1.84"]
[White "Posadas, Rayelynn"]
[Black "Karas, Eugenia"]
[Result "1/2-1/2"]
[ECO "C01"]
[WhiteElo "1589"]
[BlackElo "1829"]
[PlyCount "146"]
[EventDate "2020.??.??"]
[TimeControl "180+2"]
[WhiteClock "0:00:14"]
[BlackClock "0:00:16"]

1. e4 {[%emt 0:00:00]} e6 {[%emt 0:00:02]} 2. d4 {[%emt 0:00:02]} d5 {[%emt 0:
00:01]} 3. exd5 {[%emt 0:00:01]} exd5 {[%emt 0:00:01]} 4. Nf3 {[%emt 0:00:01]}
Nc6 {[%emt 0:00:01]} 5. Be2 {[%emt 0:00:02]} Nf6 {[%emt 0:00:03]} 6. O-O {
[%emt 0:00:01]} Be7 {[%emt 0:00:01]} 7. c3 {[%emt 0:00:02]} O-O {[%emt 0:00:02]
} 8. Nbd2 {[%emt 0:00:01]} Bf5 {[%emt 0:00:04]} 9. h3 {[%emt 0:00:06]} h6 {
[%emt 0:00:01]} 10. Re1 {[%emt 0:00:04]} Qd7 {[%emt 0:00:02]} 11. Nf1 {[%emt 0:
00:01]} Ne4 {[%emt 0:00:04]} 12. Bd3 {[%emt 0:00:05]} Bd6 {[%emt 0:00:09]} 13.
Ne3 {[%emt 0:00:02]} Bh7 {[%emt 0:00:07]} 14. Nxd5 {[%emt 0:00:03]} Bh2+ {
[%emt 0:00:29]} 15. Kxh2 {[%emt 0:00:06]} Qxd5 {[%emt 0:00:07]} 16. Qc2 {
[%emt 0:00:27]} Nf6 {[%emt 0:00:42]} 17. Bxh7+ {[%emt 0:00:11]} Nxh7 {[%emt 0:
00:01]} 18. Bf4 {[%emt 0:00:02]} Qd7 {[%emt 0:00:08]} 19. Ne5 {[%emt 0:00:13]}
Nxe5 {[%emt 0:00:04]} 20. Rxe5 {[%emt 0:00:04]} Nf6 {[%emt 0:00:07]} 21. Rae1 {
[%emt 0:00:04]} Nd5 {[%emt 0:00:03]} 22. Qe4 {[%emt 0:00:52]} c6 {[%emt 0:00:
26]} 23. Kh1 {[%emt 0:00:18]} Nf6 {[%emt 0:00:37]} 24. Qe3 {[%emt 0:00:10]} Nd5
{[%emt 0:00:02]} 25. Qg3 {[%emt 0:00:12]} Nxf4 {[%emt 0:00:03]} 26. Qxf4 {
[%emt 0:00:01]} Rae8 {[%emt 0:00:06]} 27. a3 {[%emt 0:00:13]} f6 {[%emt 0:00:
05]} 28. R5e3 {[%emt 0:00:10]} Rxe3 {[%emt 0:00:03]} 29. Rxe3 {[%emt 0:00:01]}
Re8 {[%emt 0:00:02]} 30. Rg3 {[%emt 0:00:07]} Qf7 {[%emt 0:00:04]} 31. Qd2 {
[%emt 0:00:07]} Qe7 {[%emt 0:00:05]} 32. Re3 {[%emt 0:00:02]} Qf7 {[%emt 0:00:
01]} 33. Rg3 {[%emt 0:00:02]} Qe7 {[%emt 0:00:01]} 34. b4 {[%emt 0:00:02]} Qe1+
{[%emt 0:00:02]} 35. Qxe1 {[%emt 0:00:01]} Rxe1+ {[%emt 0:00:01]} 36. Kh2 {
[%emt 0:00:01]} Ra1 {[%emt 0:00:02]} 37. Re3 {[%emt 0:00:03]} Rxa3 {[%emt 0:00:
03]} 38. Re7 {[%emt 0:00:03]} Rxc3 {[%emt 0:00:04]} 39. Rxb7 {[%emt 0:00:01]}
Rc4 {[%emt 0:00:01]} 40. Rxa7 {[%emt 0:00:02]} Rxb4 {[%emt 0:00:03]} 41. Ra6 {
[%emt 0:00:03]} Rxd4 {[%emt 0:00:01]} 42. Rxc6 {[%emt 0:00:01]} Kf7 {[%emt 0:
00:01]} 43. Kg3 {[%emt 0:00:02]} Kg6 {[%emt 0:00:02]} 44. f3 {[%emt 0:00:02]}
h5 {[%emt 0:00:03]} 45. h4 {[%emt 0:00:02]} Kh6 {[%emt 0:00:02]} 46. Kh3 {
[%emt 0:00:01]} Rd3 {[%emt 0:00:03]} 47. Ra6 {[%emt 0:00:04]} Rd4 {[%emt 0:00:
03]} 48. Ra5 {[%emt 0:00:03]} Rd3 {[%emt 0:00:04]} 49. Kg3 {[%emt 0:00:02]} Rd4
{[%emt 0:00:01]} 50. Rc5 {[%emt 0:00:03]} Rd3 {[%emt 0:00:01]} 51. Rc4 {
[%emt 0:00:01]} Rd5 {[%emt 0:00:02]} 52. Re4 {[%emt 0:00:01]} Rc5 {[%emt 0:00:
02]} 53. Kf4 {[%emt 0:00:01]} g5+ {[%emt 0:00:03]} 54. Kg3 {[%emt 0:00:04]} Rc6
{[%emt 0:00:04]} 55. hxg5+ {[%emt 0:00:04]} fxg5 {[%emt 0:00:01]} 56. Re5 {
[%emt 0:00:03]} Kg6 {[%emt 0:00:02]} 57. Ra5 {[%emt 0:00:01]} h4+ {[%emt 0:00:
03]} 58. Kh3 {[%emt 0:00:03]} Kh6 {[%emt 0:00:04]} 59. Rd5 {[%emt 0:00:02]} Kg6
{[%emt 0:00:01]} 60. g3 {[%emt 0:00:02]} hxg3 {[%emt 0:00:01]} 61. Kxg3 {
[%emt 0:00:01]} Kh6 {[%emt 0:00:02]} 62. Kg4 {[%emt 0:00:02]} Rc4+ {[%emt 0:00:
02]} 63. Kg3 {[%emt 0:00:01]} Rc6 {[%emt 0:00:03]} 64. Rd8 {[%emt 0:00:01]} Kg6
{[%emt 0:00:03]} 65. Rg8+ {[%emt 0:00:01]} Kh6 {[%emt 0:00:01]} 66. Kg4 {
[%emt 0:00:02]} Rc4+ {[%emt 0:00:01]} 67. Kg3 {[%emt 0:00:03]} Rc5 {[%emt 0:00:
03]} 68. Rh8+ {[%emt 0:00:01]} Kg7 {[%emt 0:00:01]} 69. Ra8 {[%emt 0:00:01]}
Kg6 {[%emt 0:00:01]} 70. Ra6+ {[%emt 0:00:01]} Kf5 {[%emt 0:00:04]} 71. Ra8 {
[%emt 0:00:02]} Kg6 {[%emt 0:00:01]} 72. Ra6+ {[%emt 0:00:01]} Kf5 {[%emt 0:00:
01]} 73. Ra8 {[%emt 0:00:01]} Kg6 {[%emt 0:00:01] Game drawn by repetition}
1/2-1/2